bitfinex-derivatives/quotes_BNBF0:USTF0_20251010
["timestamp","ask_amount","ask_price","bid_price","bid_amount"]
[1760138905002,2.1626916,1125.5,1118.9,0.62780268]
[1760138905201,2.1626916,1125.7,1119.4,0.62780268]
[1760138905504,2.1626916,1125.7,1119.2,0.83707024]
[1760138905505,2.1626916,1125.7,1119.5,0.57280581]
[1760138905904,2.1626916,1125.7,1119.0,0.83707024]
[1760138906103,3.0277683,1126.3,1120.4,0.62491811]
[1760138906301,3.0277683,1126.3,1120.5,1.19618592]
[1760138906506,3.0277683,1126.3,1120.6,0.57126781]
[1760138906801,3.0277683,1126.3,1120.7,0.57126781]
[1760138907101,3.0277683,1125.8,1120.4,0.62491811]
[1760138907303,2.1626916,1125.1,1120.5,0.60475575]
[1760138907500,2.1626916,1125.1,1119.9,0.62491811]
[1760138907700,2.1626916,1125.0,1120.0,0.60554649]
[1760138907904,2.1626916,1125.5,1120.1,0.60554649]
[1760138908101,3.0277683,1125.4,1119.4,0.62491811]
[1760138908306,2.1626916,1124.5,1119.5,0.56542541]
[1760138908503,2.1626916,1124.8,1119.6,0.56542541]
[1760138908702,2.1626916,1124.7,1119.6,0.56542541]
[1760138908902,2.1626916,1125.2,1119.8,0.62491811]
[1760138909108,2.1626916,1125.2,1119.9,0.56674898]
[1760138909304,2.1626916,1125.2,1120.0,0.56674898]
[1760138909506,2.1626916,1124.8,1120.1,0.56674898]
[1760138909706,2.1626916,1124.7,1120.2,0.56674898]
[1760138909909,3.0277683,1125.7,1120.3,0.56674898]
[1760138909910,2.1626916,1125.4,1120.3,0.56674898]
[1760138910110,2.1626916,1125.4,1120.4,0.56674898]
[1760138910306,2.1626916,1125.4,1120.5,0.56674898]
[1760138910608,2.1626916,1125.0,1120.1,0.62775249]
[1760138910807,2.1626916,1125.0,1120.2,0.5699344]
[1760138911010,2.1626916,1125.0,1120.3,0.5699344]
[1760138911211,2.1626916,1125.0,1119.8,0.62775249]
[1760138911407,2.1626916,1125.0,1120.0,0.62775249]
[1760138911607,2.1626916,1124.7,1120.1,0.57028638]
[1760138911808,3.0277683,1125.5,1120.2,0.57028638]
[1760138912105,3.0277683,1125.5,1119.8,0.83707024]
[1760138912106,3.0277683,1125.5,1120.3,1.19803887]
[1760138912309,2.1626916,1125.2,1120.4,1.19803887]
[1760138912509,2.1626916,1125.2,1120.5,0.57028638]
[1760138912708,2.1626916,1125.3,1120.6,0.57028638]
[1760138912908,2.1626916,1125.3,1120.7,0.57028638]
[1760138913109,2.1626916,1125.3,1120.8,0.57028638]
[1760138913310,2.1626916,1125.5,1120.9,0.57028638]
[1760138913510,2.1626916,1125.5,1121.0,0.57028638]
[1760138913711,2.1626916,1125.5,1121.1,0.57028638]
[1760138913909,2.1626916,1125.5,1120.7,0.62775249]
[1760138914213,2.1626916,1126.0,1121.0,0.62775249]
[1760138914409,2.1626916,1126.0,1121.1,0.56832722]
[1760138914712,2.1626916,1126.0,1121.2,0.56832722]
[1760138914909,2.1626916,1125.7,1121.3,0.56663868]
[1760138915114,2.1626916,1125.9,1121.4,0.56637331]
[1760138915310,2.1626916,1126.1,1121.5,0.56637331]
[1760138915611,2.1626916,1126.1,1120.6,0.62775249]
[1760138915815,2.1626916,1126.3,1120.7,1.19409425]
[1760138916016,2.1626916,1126.3,1120.8,0.56634176]
[1760138916217,2.1626916,1126.3,1120.9,0.56634176]
[1760138916412,2.1626916,1125.7,1121.0,0.56634176]
[1760138916613,2.1626916,1125.7,1121.1,0.56634176]
[1760138916816,2.1626916,1125.9,1121.2,0.56634176]
[1760138917017,3.0277683,1126.3,1121.1,0.56634176]
[1760138917314,3.0277683,1126.3,1121.0,0.62775249]
[1760138917315,3.0277683,1126.3,1121.2,0.56634176]
[1760138917511,3.0277683,1126.3,1121.3,0.56634176]
[1760138917713,3.0277683,1126.3,1120.9,0.62775249]
[1760138917912,3.0277683,1126.3,1121.0,0.5641015]
[1760138918117,2.1626916,1125.8,1121.0,1.19185399]
[1760138918315,2.1626916,1125.8,1121.1,0.5641015]
[1760138918820,2.1626916,1125.8,1120.6,0.83707024]
[1760138919020,2.1626916,1125.8,1119.9,2.0926756]
[1760138919220,2.1626916,1125.8,1121.0,0.62455956]
[1760138919415,2.1626916,1125.9,1121.1,0.56450962]
[1760138919616,2.1626916,1125.9,1121.2,0.56450962]
[1760138919820,2.1626916,1125.9,1121.3,0.56450962]
[1760138920021,2.1626916,1126.3,1120.9,0.62455956]
[1760138920321,2.1626916,1126.3,1121.0,0.56428742]
[1760138920521,2.1626916,1126.3,1121.1,0.56428742]
[1760138920719,2.1626916,1126.3,1121.2,0.56428742]
[1760138920922,2.1626916,1126.3,1120.8,0.62455956]
[1760138921121,2.1626916,1126.4,1120.9,1.18840049]
[1760138921422,2.1626916,1126.4,1121.1,0.62455956]
[1760138921624,2.1626916,1126.3,1121.2,0.56384093]
[1760138921820,2.1626916,1126.3,1120.5,0.62455956]
[1760138922020,3.0277683,1126.8,1120.7,0.62455956]
[1760138922220,2.1626916,1126.9,1120.8,0.56293806]
[1760138922423,2.1626916,1126.9,1120.9,0.56293806]
[1760138922625,2.1626916,1126.8,1121.0,0.56293806]
[1760138922824,2.1626916,1126.8,1120.4,0.62455956]
[1760138923120,2.1626916,1126.7,1120.5,0.5626517]
[1760138923322,2.1626916,1126.7,1120.6,0.5626517]
[1760138923521,2.1626916,1126.7,1119.8,0.62455956]
[1760138923825,2.1626916,1126.0,1119.5,1.615]
[1760138924026,2.1626916,1126.0,1119.6,0.56284772]
[1760138924223,2.1626916,1125.4,1119.7,0.56284772]
[1760138924529,2.1626916,1125.4,1119.5,1.615]
[1760138924728,2.1626916,1125.8,1119.7,0.62199288]
[1760138924926,2.1626916,1125.8,1119.8,0.56181025]
[1760138925226,3.0277683,1126.4,1119.8,1.18380313]
[1760138925227,2.1626916,1126.0,1119.8,1.18380313]
[1760138925426,2.1626916,1126.0,1119.9,0.56181025]
[1760138925628,2.1626916,1126.0,1119.9,0.62199288]
[1760138925824,2.1626916,1125.8,1119.8,0.62199288]
[1760138926026,2.1626916,1125.8,1119.9,1.18380313]
[1760138926225,2.1626916,1125.8,1120.0,0.56181025]
[1760138926428,2.1626916,1126.0,1120.1,0.56181025]
[1760138926724,2.1626916,1126.7,1120.3,0.62199288]
[1760138926930,2.1626916,1126.7,1119.7,0.62199288]
[1760138927129,2.1626916,1126.7,1119.5,1.615]
[1760138927130,2.1626916,1126.7,1119.8,0.56342413]
[1760138927328,2.1626916,1125.7,1119.9,0.56342413]
[1760138927525,2.1626916,1126.2,1120.2,0.62199288]
[1760138927729,2.1626916,1126.0,1120.4,0.62199288]
[1760138927927,2.1626916,1126.0,1120.5,0.56342413]
[1760138928230,5.1904599,1126.1,1119.7,0.62199288]
[1760138928432,5.1904599,1126.1,1119.8,0.56157963]
[1760138928626,5.1904599,1126.1,1119.9,0.56157963]
[1760138928829,2.1626916,1126.0,1120.0,0.56157963]
[1760138929128,2.1626916,1126.0,1120.1,0.56157963]
[1760138929332,2.1626916,1126.0,1120.2,0.56157963]
[1760138929532,2.1626916,1126.1,1120.3,0.56157963]
[1760138929732,2.1626916,1126.1,1119.8,0.62199288]
[1760138929931,2.1626916,1125.7,1119.9,0.55350855]
[1760138930129,2.1626916,1125.7,1119.5,1.615]
[1760138930333,2.1626916,1125.7,1119.6,0.55396873]
[1760138930629,2.1626916,1125.3,1119.7,0.55396873]
[1760138930832,2.1626916,1125.3,1119.8,0.55396873]
[1760138931031,2.1626916,1124.9,1119.5,1.615]
[1760138931232,5.1904599,1126.0,1119.6,0.55455647]
[1760138931432,2.1626916,1125.4,1119.7,0.55455647]
[1760138931630,2.1626916,1125.4,1119.8,0.55455647]
[1760138931834,2.1626916,1126.2,1119.9,0.55455647]
[1760138932133,2.1626916,1126.2,1120.0,0.55455647]
[1760138932334,2.1626916,1126.4,1120.1,0.55455647]
[1760138932631,2.1626916,1126.4,1120.2,0.55455647]
[1760138932834,2.1626916,1125.7,1120.3,0.55455647]
[1760138933030,2.1626916,1125.7,1119.8,0.62199288]
[1760138933235,2.1626916,1125.3,1119.5,1.615]
[1760138933531,2.1626916,1125.3,1119.6,0.55438145]
[1760138933737,2.1626916,1125.3,1119.7,0.55438145]
[1760138933935,2.1626916,1125.6,1119.8,0.55438145]
[1760138934237,2.1626916,1125.5,1119.9,0.55447863]
[1760138934433,2.1626916,1126.7,1120.0,0.55447863]
[1760138934636,2.1626916,1126.7,1120.1,0.55447863]
[1760138934837,2.1626916,1126.7,1119.6,0.62199288]
[1760138935032,2.1626916,1125.6,1119.7,0.55461913]
[1760138935333,2.1626916,1125.6,1119.5,1.615]
[1760138935633,2.1626916,1125.2,1119.6,0.55511053]
[1760138935836,2.1626916,1125.2,1119.7,0.55511053]
[1760138936033,2.1626916,1125.1,1119.5,1.615]
[1760138936638,2.1626916,1125.4,1119.6,0.55578521]
[1760138936838,2.1626916,1125.7,1119.7,0.55578521]
[1760138937038,2.1626916,1125.7,1119.8,0.55578521]
[1760138937237,2.1626916,1125.9,1119.8,0.62199288]
[1760138937437,2.1626916,1126.2,1119.8,1.17777809]
[1760138937636,2.1626916,1126.2,1119.9,0.55578521]
[1760138937837,2.1626916,1125.6,1119.5,1.615]
[1760138938035,2.1626916,1125.8,1119.7,0.62199288]
[1760138938438,2.1626916,1125.8,1119.8,0.55531427]
[1760138938735,2.1626916,1125.4,1119.9,0.55531427]
[1760138938938,2.1626916,1125.4,1120.0,0.55531427]
[1760138939133,2.1626916,1125.4,1120.1,0.55531427]
[1760138939435,2.1626916,1125.7,1120.2,0.55556817]
[1760138939639,2.1626916,1125.7,1119.6,0.62199288]
[1760138939837,2.1626916,1125.6,1119.6,1.17808543]
[1760138940036,2.1626916,1125.6,1120.0,0.62199288]
[1760138940339,2.1626916,1125.8,1120.1,1.17808543]
[1760138940540,8.6507666,1128.8,1119.5,1.615]
[1760138940541,2.1626916,1126.1,1120.3,0.62199288]
[1760138941038,2.1626916,1126.3,1120.4,1.17808543]
[1760138941238,2.1626916,1126.3,1120.5,0.55609255]
[1760138941437,2.1626916,1126.4,1120.6,0.55609255]
[1760138941737,2.1626916,1127.0,1120.8,0.62199288]
[1760138942141,2.1626916,1127.0,1120.5,0.83274608]
[1760138942343,2.1626916,1127.0,1121.3,0.62213819]
[1760138942544,2.1626916,1127.0,1121.4,1.21782309]
[1760138942747,2.1626916,1127.7,1121.6,0.62213819]
[1760138943040,2.1626916,1127.7,1121.7,0.5956849]
[1760138943344,2.1626916,1127.1,1121.8,0.5956849]
[1760138943540,2.1626916,1127.1,1121.9,0.5956849]
[1760138943745,2.1626916,1127.7,1121.3,0.62213819]
[1760138943942,2.1626916,1127.7,1121.4,0.5958729]
[1760138944144,2.1626916,1127.7,1121.5,0.5958729]
[1760138944346,2.1626916,1127.2,1121.6,0.59577471]
[1760138944546,2.1626916,1127.2,1121.1,0.62213819]
[1760138944745,2.1626916,1127.2,1121.2,0.59578914]
[1760138944945,2.1626916,1126.5,1120.8,0.62213819]
[1760138945144,2.1626916,1126.5,1120.9,0.59596507]
[1760138945346,3.0277683,1127.0,1119.8,0.62213819]
[1760138945544,3.0277683,1127.0,1119.9,1.19033715]
[1760138945846,3.0277683,1127.0,1120.0,0.56819896]
[1760138946043,2.1626916,1125.8,1120.1,0.56819896]
[1760138946342,2.1626916,1125.8,1119.6,0.62213819]
[1760138946644,2.1626916,1125.7,1119.6,1.18137476]
[1760138946847,2.1626916,1125.7,1119.7,0.55923657]
[1760138947147,2.1626916,1125.3,1119.7,0.62213819]
[1760138947347,6.9206133,1130.2,1119.9,0.62213819]
[1760138947348,2.1626916,1125.5,1119.9,0.62213819]
[1760138947548,2.1626916,1125.5,1120.1,0.62213819]
[1760138947848,2.1626916,1125.9,1120.2,0.55923657]
[1760138948048,2.1626916,1125.9,1120.3,0.55923657]
[1760138948247,2.1626916,1125.8,1120.4,0.55923657]
[1760138948448,2.1626916,1125.8,1119.9,0.62213819]
[1760138948449,2.1626916,1125.8,1119.7,0.62213819]
[1760138948743,2.1626916,1125.3,1119.8,0.56083855]
[1760138948949,2.1626916,1125.3,1120.1,0.62213819]
[1760138949248,2.1626916,1126.1,1120.4,0.62213819]
[1760138949445,2.1626916,1126.1,1120.5,1.18297674]
[1760138949649,2.1626916,1126.1,1120.6,0.56083855]
[1760138949948,2.1626916,1125.8,1120.6,1.18297674]
[1760138950147,2.1626916,1125.8,1120.7,0.56083855]
[1760138950350,2.1626916,1126.0,1120.8,0.56083855]
[1760138950648,2.1626916,1126.0,1120.2,0.62213819]
[1760138950845,2.1626916,1125.8,1120.3,1.18255391]
[1760138951046,2.1626916,1125.8,1120.4,1.18255391]
[1760138951250,2.1626916,1126.1,1120.5,1.18255391]
[1760138951549,2.1626916,1126.1,1120.6,0.56041572]
[1760138951747,2.1626916,1125.8,1120.7,0.56041572]
[1760138952046,2.1626916,1125.8,1120.2,0.62213819]
[1760138952246,2.1626916,1125.8,1119.5,1.615]
[1760138952247,2.1626916,1125.5,1120.3,1.18635042]
[1760138952447,2.1626916,1125.5,1120.4,0.56421223]
[1760138952650,2.1626916,1125.5,1120.5,0.56421223]
[1760138952850,2.1626916,1125.5,1120.6,0.56421223]
[1760138953150,2.1626916,1125.5,1120.7,0.56344229]
[1760138953349,2.1626916,1125.5,1120.8,0.56344229]
[1760138953550,2.1626916,1125.7,1120.7,1.18558048]
[1760138953847,2.1626916,1125.7,1120.8,0.56344229]
[1760138954146,2.1626916,1125.7,1120.6,0.62213819]
[1760138954147,2.1626916,1125.6,1120.9,0.56344229]
[1760138954350,2.1626916,1126.8,1121.0,0.56344229]
[1760138954548,2.1626916,1126.8,1121.1,0.56344229]
[1760138954749,2.1626916,1125.6,1121.1,0.56344229]
[1760138954945,2.1626916,1125.9,1121.1,0.56344229]
[1760138955145,2.1626916,1126.7,1121.2,1.18558048]
[1760138955345,2.1626916,1126.7,1121.0,2.021]
[1760138955346,2.1626916,1126.7,1121.3,0.56344229]
[1760138955546,2.1626916,1126.7,1121.4,0.5643662]
[1760138955847,2.1626916,1126.0,1121.5,0.5643662]
[1760138956048,2.1626916,1126.3,1121.9,0.63008806]
[1760138956345,2.1626916,1126.3,1122.0,0.5643662]
[1760138956550,3.0277683,1126.6,1122.1,0.5643662]
[1760138956746,3.0277683,1126.6,1122.2,0.57007383]
[1760138956951,2.1626916,1128.2,1122.9,0.63008806]
[1760138957146,2.1626916,1128.2,1123.0,0.57007383]
[1760138957349,2.1626916,1128.2,1123.1,0.57007383]
[1760138957547,3.0277683,1128.7,1123.9,0.63008806]
[1760138957751,3.0277683,1128.7,1124.0,0.57007383]
[1760138957951,3.0277683,1129.4,1123.4,0.63008806]
[1760138958153,3.0277683,1129.4,1123.5,0.64784458]
[1760138958352,3.0277683,1129.4,1123.6,0.64784458]
[1760138958551,0.86796999,1125.4,1121.7,0.63008806]
[1760138958753,0.86796999,1125.4,1121.5,0.63008806]
[1760138958948,2.16992499,1126.8,1121.1,0.83274608]
[1760138958949,0.86796999,1124.9,1121.1,0.83274608]
[1760138959150,0.86796999,1124.4,1121.0,2.021]
[1760138959353,0.86796999,1124.7,1121.0,2.65108806]
[1760138959552,0.86796999,1124.9,1121.1,0.63008806]
[1760138959757,0.86796999,1125.4,1121.3,0.63008806]
[1760138959952,0.86796999,1124.9,1121.3,0.63008806]
[1760138960151,0.86796999,1125.2,1121.3,0.63008806]
[1760138960357,0.86796999,1124.5,1121.0,2.021]
[1760138960652,0.86796999,1124.7,1121.0,2.65108806]
[1760138960856,0.86796999,1125.0,1121.0,2.65108806]
[1760138961056,4.3253833,1129.1,1121.0,2.65108806]
[1760138961057,0.86796999,1125.7,1121.8,0.63008806]
[1760138961350,0.86796999,1125.7,1121.0,2.021]
[1760138961351,0.86796999,1125.8,1121.9,0.63008806]
[1760138961556,0.86796999,1125.8,1121.0,2.021]
[1760138961557,1.30195499,1126.3,1122.0,1.1803906]
[1760138961753,1.30195499,1126.5,1122.1,0.55030254]
[1760138962056,1.30195499,1126.2,1122.2,0.55030254]
[1760138962354,1.30195499,1126.4,1122.3,0.55030254]
[1760138962551,1.30195499,1126.3,1122.3,1.1803906]
[1760138962755,1.30195499,1126.2,1122.4,0.55030254]
[1760138963052,1.30195499,1126.1,1122.5,0.5530721]
[1760138963257,1.30195499,1126.0,1121.8,0.63008806]
[1760138963553,1.30195499,1125.9,1121.9,0.55352967]
[1760138963756,1.30195499,1125.9,1122.0,0.55352967]
[1760138964051,1.30195499,1125.6,1121.6,0.63008806]
[1760138964355,1.30195499,1125.4,1121.7,0.55343995]
[1760138964552,1.30195499,1125.2,1121.1,0.63008806]
[1760138964759,1.30195499,1125.3,1121.2,1.18424464]
[1760138965056,1.30195499,1125.2,1121.3,0.55415658]
[1760138965254,1.30195499,1124.5,1121.0,2.021]
[1760138965453,1.30195499,1124.3,1121.1,0.55569715]
[1760138965654,1.30195499,1124.6,1121.0,2.021]
[1760138966053,1.30195499,1124.4,1121.0,2.021]
[1760138966257,1.30195499,1124.1,1121.0,2.021]
[1760138966551,1.30195499,1124.0,1121.0,2.021]
[1760138966752,1.30195499,1123.8,1121.0,2.021]
[1760138966952,1.30195499,1124.1,1121.0,2.021]
[1760138967152,1.30195499,1124.9,1121.1,0.55642152]
[1760138967354,1.30195499,1124.8,1121.2,0.55642152]
[1760138967658,1.30195499,1126.5,1122.0,0.63008806]
[1760138967854,1.30195499,1126.6,1122.4,0.63008806]
[1760138968156,1.30195499,1126.4,1122.5,0.55642152]
[1760138968358,1.30195499,1126.4,1122.6,0.55642152]
[1760138968556,2.16992499,1127.6,1122.7,0.55642152]
[1760138968760,2.16992499,1127.6,1122.8,0.55642152]
[1760138968958,2.16992499,1127.9,1122.9,0.55642152]
[1760138969156,2.16992499,1127.9,1122.3,0.63008806]
[1760138969357,2.16992499,1127.9,1122.4,0.5624139]
[1760138969657,2.16992499,1127.9,1122.5,0.5624139]
[1760138969861,2.16992499,1128.0,1122.6,0.5624139]
[1760138970059,2.16992499,1128.0,1122.7,0.5624139]
[1760138970262,2.16992499,1128.0,1122.8,0.5624139]
[1760138970459,2.16992499,1127.6,1122.9,0.5624139]
[1760138970659,2.16992499,1127.7,1123.0,0.5624139]
[1760138970857,2.16992499,1128.5,1123.1,0.5624139]
[1760138971058,2.16992499,1128.5,1123.2,0.5624139]
[1760138971259,2.16992499,1128.5,1123.3,0.5624139]
[1760138971459,2.16992499,1128.0,1123.4,0.56191523]
[1760138971663,2.16992499,1128.0,1122.9,0.63008806]
[1760138971860,2.16992499,1128.4,1123.1,0.63008806]
[1760138972062,2.16992499,1128.4,1123.2,0.56165402]
[1760138972260,2.16992499,1128.8,1123.3,0.56165402]
[1760138972464,2.16992499,1128.8,1123.4,0.56165402]
[1760138972760,2.16992499,1128.8,1123.5,0.56165402]
[1760138972965,2.16992499,1128.7,1123.6,0.56165402]
[1760138973266,2.16992499,1128.7,1122.6,1.24911912]
[1760138973267,2.16992499,1128.8,1123.2,0.63008806]
[1760138973562,2.16992499,1128.8,1123.3,0.56226635]
[1760138973764,5.19769329,1129.3,1123.4,0.56226635]
[1760138973966,2.16992499,1129.3,1123.5,0.56226635]
[1760138974167,2.16992499,1129.3,1123.6,0.56226635]
[1760138974366,2.16992499,1129.7,1123.7,0.56021763]
[1760138974570,2.16992499,1129.7,1123.0,0.63008806]
[1760138974770,2.16992499,1128.9,1123.1,0.55982297]
[1760138974971,2.16992499,1128.9,1123.2,0.55982297]
[1760138975267,2.16992499,1128.9,1122.6,0.63008806]
[1760138975469,2.16992499,1128.7,1122.8,0.63008806]
[1760138975670,2.16992499,1128.7,1122.9,1.19014202]
[1760138975870,2.16992499,1128.7,1123.0,0.56005396]
[1760138976067,2.16992499,1128.7,1123.1,1.19014202]
[1760138976369,2.16992499,1128.9,1123.2,0.56005396]
[1760138976566,2.16992499,1128.9,1123.3,0.56005396]
[1760138976769,2.16992499,1128.9,1123.4,0.56005396]
[1760138977074,2.16992499,1128.9,1123.5,0.56005396]
[1760138977274,2.16992499,1128.6,1122.7,0.63008806]
[1760138977569,2.16992499,1128.6,1122.8,0.56020652]
[1760138977774,2.16992499,1128.0,1122.9,0.56020652]
[1760138978071,2.16992499,1128.0,1122.5,0.63008806]
[1760138978269,2.16992499,1128.3,1122.6,0.56037662]
[1760138978471,2.16992499,1128.3,1122.7,0.56037662]
[1760138978773,2.16992499,1128.3,1122.8,0.55970142]
[1760138978970,2.16992499,1129.7,1123.1,0.63008806]
[1760138979174,2.16992499,1129.7,1123.3,0.63008806]
[1760138979375,2.16992499,1129.7,1122.9,0.63008806]
[1760138979573,2.16992499,1128.8,1123.0,0.55813714]
[1760138979772,2.16992499,1129.8,1123.2,0.63008806]
[1760138979972,2.16992499,1129.8,1123.3,0.55813714]
[1760138980172,2.16992499,1129.8,1123.4,0.55813714]
[1760138980371,2.16992499,1129.7,1123.0,0.63008806]
[1760138980576,2.16992499,1129.7,1123.1,0.6012013]
[1760138980775,2.16992499,1129.1,1123.2,0.6012013]
[1760138980976,2.16992499,1129.1,1123.3,0.6012013]
[1760138981179,2.16992499,1129.1,1123.1,0.63008806]
[1760138981180,2.16992499,1129.1,1123.4,0.6012013]
[1760138981479,2.16992499,1129.3,1123.5,0.6012013]
[1760138981680,2.16992499,1129.3,1123.6,0.59953329]
[1760138981879,2.16992499,1129.6,1123.7,0.60178529]
[1760138982081,2.16992499,1129.6,1123.1,0.63008806]
[1760138982380,2.16992499,1129.3,1123.4,0.63008806]
[1760138982680,2.16992499,1129.2,1123.6,0.63008806]
[1760138982880,2.16992499,1129.2,1123.7,0.60159914]
[1760138983076,2.16992499,1129.2,1123.8,0.60159914]
[1760138983380,2.16992499,1129.2,1123.9,1.923]
[1760138983577,2.16992499,1129.8,1123.9,1.923]
[1760138984080,2.16992499,1129.0,1123.9,1.923]
[1760138984580,2.16992499,1129.3,1123.9,1.923]
[1760138985281,2.16992499,1129.7,1123.9,1.923]
[1760138986085,2.16992499,1129.8,1123.9,1.923]
[1760138986785,2.16992499,1129.4,1123.9,1.923]
[1760138986982,2.16992499,1129.8,1123.9,1.923]
[1760138987586,2.16992499,1130.1,1123.9,1.923]
[1760138987984,2.16992499,1129.6,1124.0,0.59670273]
[1760138988185,2.16992499,1129.6,1123.9,1.923]
[1760138988385,3.0277683,1130.0,1124.0,0.59640679]
[1760138988985,3.0277683,1130.0,1123.9,1.923]
[1760138989184,2.16992499,1130.2,1123.9,1.923]
[1760138989388,2.16992499,1130.1,1123.9,1.923]
[1760138989690,2.16992499,1129.4,1123.9,1.923]
[1760138989988,3.0277683,1130.4,1123.9,1.923]
[1760138989989,2.16992499,1129.6,1123.9,1.923]
[1760138990191,2.16992499,1129.6,1124.0,0.59653051]
[1760138990486,3.0277683,1130.1,1123.9,1.923]
[1760138990686,3.0277683,1130.1,1124.0,0.59675314]
[1760138990886,3.0277683,1130.1,1124.1,0.59675314]
[1760138991189,2.16992499,1130.1,1123.9,1.923]
[1760138991486,2.16992499,1129.5,1123.9,1.923]
[1760138992091,2.16992499,1129.9,1123.9,1.923]
[1760138992789,2.16992499,1129.7,1123.9,1.923]
[1760138993386,2.16992499,1129.8,1123.9,1.923]
[1760138993987,2.16992499,1129.6,1123.9,1.923]
[1760138994388,2.16992499,1129.7,1123.9,1.923]
[1760138994993,2.16992499,1128.9,1123.9,1.923]
[1760138995890,2.16992499,1129.1,1123.9,1.923]
[1760138996194,2.16992499,1129.5,1123.9,1.923]
[1760138996493,2.16992499,1129.2,1123.9,1.923]
[1760138996894,3.0277683,1129.6,1124.0,0.59732819]
[1760138997092,3.0277683,1129.6,1123.9,1.923]
[1760138997495,2.16992499,1129.3,1123.9,1.923]
[1760138998096,2.16992499,1128.7,1123.9,1.923]
[1760138998591,2.16992499,1128.8,1123.9,1.923]
[1760138998996,2.16992499,1128.6,1123.9,1.923]
[1760138999195,2.16992499,1128.7,1123.9,1.923]
[1760138999596,2.16992499,1128.9,1123.9,1.923]
[1760139000297,2.16992499,1128.8,1123.9,1.923]
[1760139001496,2.16992499,1128.2,1121.8,0.63028202]
[1760139001695,2.16992499,1128.2,1121.9,1.21863602]
[1760139001997,2.16992499,1127.9,1121.1,0.63028202]
[1760139002194,2.16992499,1127.9,1121.2,1.21968418]
[1760139002493,2.16992499,1126.4,1121.3,0.58940216]
[1760139002699,2.16992499,1126.4,1120.8,0.63028202]
[1760139002899,2.16992499,1126.4,1120.9,0.56066691]
[1760139003196,2.16992499,1126.8,1121.0,0.56066691]
[1760139003399,1.2899527,1125.6,1120.4,0.63028202]
[1760139003697,1.2899527,1125.7,1121.1,2.194]
[1760139004096,1.2899527,1125.5,1121.1,2.194]
[1760139004298,1.2899527,1125.4,1121.1,2.194]
[1760139004497,1.2899527,1125.5,1121.1,2.194]
[1760139004799,1.2899527,1126.1,1121.2,0.55054967]
[1760139005001,1.2899527,1125.9,1121.3,0.55054308]
[1760139005302,1.2899527,1125.7,1121.1,2.194]
[1760139005503,1.2899527,1125.4,1121.1,2.194]
[1760139005899,1.2899527,1125.6,1121.2,0.55037403]
[1760139006202,1.2899527,1126.2,1121.4,0.63028202]
[1760139006403,1.2899527,1126.3,1121.4,0.63028202]
[1760139006798,1.2899527,1126.3,1121.2,0.84037602]
[1760139007003,3.0277683,1127.5,1121.1,2.194]
[1760139007199,1.2925529,1125.9,1121.2,1.18668287]
[1760139007400,1.2925529,1126.0,1121.3,0.55214248]
[1760139007699,1.2925529,1125.5,1121.1,2.194]
[1760139007908,1.2925529,1125.5,1121.2,1.1876623]
[1760139008208,1.2925529,1126.0,1121.6,0.63454039]
[1760139008508,1.2925529,1126.4,1121.7,0.55312191]
[1760139008704,3.0159568,1127.3,1121.4,0.63454039]
[1760139008705,1.2925529,1126.2,1121.4,0.63454039]
[1760139008909,1.2925529,1125.2,1121.1,2.194]
[1760139009207,1.2925529,1125.0,1121.1,2.194]
[1760139009405,1.2925529,1124.8,1121.1,2.194]
[1760139009605,2.1542548,1126.2,1121.1,2.194]
[1760139009606,1.2925529,1124.7,1121.1,2.194]
[1760139009807,1.2925529,1125.4,1121.2,0.55404874]
[1760139010008,1.2925529,1125.6,1121.3,1.18858913]
[1760139010206,1.2925529,1127.1,1121.9,0.63454039]
[1760139010510,1.2925529,1126.7,1122.0,0.55404874]
[1760139010715,1.2925529,1126.6,1122.1,0.55404874]
[1760139011007,1.2925529,1126.7,1122.5,0.63454039]
[1760139011206,1.2925529,1126.8,1122.6,0.55404874]
[1760139011407,0.86315869,1126.8,1122.4,0.63454039]
[1760139011706,0.86315869,1126.9,1122.6,0.63454039]
[1760139012007,2.1542548,1128.4,1122.6,0.63454039]
[1760139012008,0.86315869,1127.1,1122.6,0.63454039]
[1760139012205,0.86315869,1127.2,1122.8,0.63454039]
[1760139012807,0.86315869,1127.5,1123.3,0.63335026]
[1760139013008,0.86315869,1127.5,1123.4,0.63335026]
[1760139013211,0.86315869,1128.0,1123.6,0.63335026]
[1760139013510,0.86315869,1128.0,1123.5,0.63335026]
[1760139013710,0.86315869,1127.9,1123.5,0.63335026]
[1760139013907,0.86315869,1128.0,1123.5,0.63335026]
[1760139014108,0.86315869,1127.8,1123.6,0.63335026]
[1760139014307,0.86315869,1127.7,1123.6,0.63335026]
[1760139014512,0.86315869,1127.8,1123.4,0.63335026]
[1760139014710,0.86315869,1126.7,1122.8,0.63335026]
[1760139014912,0.86315869,1126.5,1122.7,0.63335026]
[1760139015112,0.86315869,1126.5,1122.3,0.63335026]
[1760139015310,0.86315869,1126.3,1122.1,0.63335026]
[1760139015510,0.86315869,1125.8,1121.9,0.63335026]
[1760139015712,0.86315869,1125.7,1122.0,0.63335026]
[1760139015909,0.86315869,1125.7,1121.9,0.63335026]
[1760139016111,0.86315869,1126.1,1121.9,0.63335026]
[1760139016313,0.86315869,1126.0,1121.9,0.63335026]
[1760139016514,0.86315869,1126.3,1122.2,0.63335026]
[1760139016709,0.86315869,1126.5,1122.7,0.63335026]
[1760139016913,0.86315869,1126.5,1122.4,0.63335026]
[1760139017210,0.86315869,1126.5,1122.3,0.63335026]
[1760139017410,0.86315869,1126.4,1122.4,0.63335026]
[1760139017610,0.86315869,1126.1,1122.2,0.63335026]
[1760139017810,0.86315869,1126.1,1122.3,0.63335026]
[1760139018010,0.86315869,1126.2,1122.3,0.63335026]
[1760139018313,0.86315869,1126.2,1122.1,0.84605386]
[1760139018511,0.86315869,1126.8,1122.8,0.63501215]
[1760139018713,0.86315869,1126.9,1122.9,0.63501215]
[1760139018913,4.3085097,1129.6,1122.9,0.63501215]
[1760139018914,0.86315869,1127.2,1123.2,0.63501215]
[1760139019211,0.86315869,1127.8,1123.6,0.63501215]
[1760139019508,0.86315869,1127.8,1123.3,0.84605386]
[1760139019509,0.86315869,1127.1,1123.3,0.63501215]
[1760139019709,0.86315869,1127.4,1123.4,0.63501215]
[1760139019908,2.1542548,1128.7,1123.9,0.63501215]
[1760139020210,2.1542548,1128.7,1124.0,0.56894185]
[1760139020410,2.1542548,1129.5,1124.1,0.56894185]
[1760139020614,2.1542548,1129.5,1124.2,0.56894185]
[1760139020815,2.1542548,1129.2,1124.3,0.56894185]
[1760139021016,2.1542548,1129.2,1123.8,0.63501215]
[1760139021017,2.1542548,1129.2,1123.7,0.63501215]
[1760139021315,2.1542548,1128.5,1123.8,1.20250017]
[1760139021516,2.1542548,1128.6,1123.9,1.20250017]
[1760139021811,2.1542548,1128.6,1124.0,0.56748802]
[1760139022017,3.0159568,1129.0,1124.1,0.56748802]
[1760139022214,3.0159568,1129.0,1123.6,0.63501215]